[Event "European Amateur Chess-ch 2022"]
[Site "Zagreb"]
[Date "2022.08.14"]
[Round "1.10"]
[White "Raljic, Mirko"]
[Black "Brigljevic, Milan"]
[Result "0-1"]
[ECO "B07"]
[WhiteElo "2023"]
[BlackElo "2161"]
[Annotator "TA"]
[PlyCount "92"]
[EventDate "2022.08.14"]
[EventCountry "CRO"]
[SourceTitle "playchess.com"]
[Source "ChessBase"]
[SourceQuality "1"]
[TimeControl "40/5400+30:1800+30"]

{[%evp 11,92,27,39,-29,46,-25,0,0,10,-16,21,-15,-10,-27,-27,-47,-46,-121,-40,-44,-26,-113,-108,-117,-132,-179,-182,-282,-272,-375,-392,-393,-384,-382,-389,-375,-372,-449,-442,-487,-380,-501,-367,-506,-481,-757,-742,-734,-695,-723,-714,-925,-925,-890,-846,-1102,-1095,-993,-724,-1108,-1049,-1451,-1304,-1400,-1479,-2169,-746,-2770,-1643,-2778,-2633,-2235,-1917,-5381,-1230,-29977,-29977,-29977,-29977,-29979,-29979,-29979,-29976]} 1. e4 d6 2. Nc3 Nf6 3. d4 c6 4. f4 Qa5 5. Bd2 e5 6. dxe5 dxe5 7. f5 {B07: Pirc Defence: Miscellaneous Systems.} (7. fxe5 $14 Ng4 8. Be2 Nxe5 9. Nf3) 7... Nbd7 (7... Qb6 $11) 8. Bd3 ({Better is} 8. Qf3 $14) 8... Qc7 9. Qe2 {The position is equal.} Nc5 10. Nf3 b5 {[%cal Bb7b5,Bb5b4][%mdl 32]} 11. a3 {[#]} (11. a4 $5 {[%cal Ra4b5]}) 11... Be7 $146 ({Predecessor:} 11... Bb7 12. O-O Be7 13. Kh1 Nfd7 14. b4 Nxd3 15. cxd3 O-O 16. Be3 a5 17. Rab1 Rfe8 {0-1 (42) Stam,B-Hartoch,R (2355) Haarlem 1993}) 12. O-O (12. g4 $5) 12... O-O 13. Rad1 a5 14. Nb1 {[#]} ({White should play} 14. Ra1 $15) 14... Nxd3 (14... Bxf5 $1 $17 {[%cal Rf6e4][%mdl 512]} 15. exf5 e4) 15. cxd3 $15 b4 16. Rc1 (16. Bg5 $11) 16... Ba6 {Black converts the advantage convincingly.} 17. Rfd1 Rfd8 18. Bg5 {[#]} (18. Ne1 $17 {keeps fighting.}) 18... Ng4 $1 $19 19. Bxe7 (19. Be3 $142) 19... Qxe7 20. h3 Qa7+ 21. Kh1 Nf2+ 22. Kh2 Nxd1 23. Rxd1 f6 24. g4 h6 25. h4 Qf7 26. Qc2 Rac8 27. d4 exd4 28. Rxd4 (28. axb4 $142 axb4 29. g5) 28... Rxd4 29. Nxd4 Qc7+ 30. Kg2 Qf4 {Hoping for ...Qf1+.} 31. Nd2 {Inhibits Qf1+.} Qxg4+ 32. Kf2 Qxh4+ 33. Ke3 Qe1+ 34. Kf4 Qf2+ 35. N4f3 c5 {[%cal Bc6c5,Bc5b4][%mdl 32]} 36. axb4 cxb4 37. Qb3+ Kh7 38. Qe6 Qa7 {Threatens to win with ...Rd8.} 39. Nh4 Qc7+ 40. Ke3 Bc4 41. Nxc4 Qxc4 {KQR-KQN} 42. Qd7 Qc6 43. Qf7 Re8 {Black mates.} 44. Qg6+ Kg8 45. Qg2 Qc1+ 46. Kf3 Qe1 {Weighted Error Value: White=1.24/Black=0.41} 0-1

[Event "European Amateur Chess-ch 2022"]
[Site "Zagreb"]
[Date "2022.08.14"]
[Round "1.11"]
[White "Roska, Branislav"]
[Black "Franc, Borna"]
[Result "1-0"]
[ECO "C54"]
[WhiteElo "2153"]
[BlackElo "2020"]
[Annotator "TA"]
[PlyCount "117"]
[EventDate "2022.08.14"]
[EventCountry "CRO"]
[SourceTitle "playchess.com"]
[Source "ChessBase"]
[SourceQuality "1"]
[TimeControl "40/5400+30:1800+30"]

{[%evp 11,117,10,15,0,0,-41,-38,-48,0,-29,-49,-34,-40,-35,-31,-51,-44,-54,-45,-54,-20,-40,-29,-27,-30,-26,-24,-31,-19,-33,-37,-48,-40,-41,-52,-49,0,-49,0,0,0,0,25,30,25,25,12,16,71,71,222,234,215,211,608,602,385,29,51,46,62,9,12,7,8,8,8,11,14,0,0,0,6,6,36,0,0,0,0,0,0,0,0,0,0,0,0,0,0,0,0,0,0,0,8,0,29990,29991,29991,8,6,0,29991,29992,29992,29993,29993,29994]} 1. e4 e5 2. Bc4 Nc6 3. Nf3 Bc5 4. c3 Nf6 5. d3 d6 6. h3 h6 7. b4 {C54: Giuoco Piano: 4 c3 Nf6, main lines with 5 d4 and 5 d3.} Bb6 8. Qb3 {Threatens to win with a4.} O-O 9. a4 {Black must now prevent a5. Black is slightly better.} a6 (9... a5 $1 $15 {feels stronger.}) 10. Be3 Bxe3 11. fxe3 Ne7 12. O-O c6 13. Qc2 d5 {[#]} 14. Ba2 $146 ({Predecessor:} 14. exd5 cxd5 15. Bb3 Nf5 16. Re1 e4 17. dxe4 dxe4 18. Nd4 Nxd4 19. exd4 Bf5 20. Nd2 {1-0 (54) Granovskaya,E (1763)-Malicka,M (2047) Riga 2018}) 14... Ng6 15. Nbd2 Qe7 16. Rae1 dxe4 17. Nxe4 Nxe4 18. dxe4 Be6 19. Bxe6 Qxe6 20. c4 a5 21. Rb1 axb4 22. Rxb4 Qe7 23. Rfb1 Qc5 (23... Ra7 $15) 24. Qf2 (24. Kf2 $11) 24... Rad8 (24... b6 $15 {is superior.}) 25. Rxb7 $11 Qxc4 26. a5 Qa6 27. h4 Qxa5 28. h5 Nh8 29. Nh4 Qd2 (29... Rd2 $11 30. Qe1 (30. Qg3 Qd8 $14) 30... Qd8) 30. Qf3 $16 Rd7 $2 {[#]} (30... Qd6 $16) 31. Nf5 $1 $18 {Hoping for Qg4.} Rxb7 32. Rxb7 {And now Ne7+ would win.} Qe1+ $2 {[#]} (32... Kh7 33. Qg4 Rg8) 33. Kh2 $1 Kh7 34. Ng3 $2 (34. Qg4 $18 {[%csl Gf5][%cal Rg4g7]} Rg8 35. Ne7) 34... Qa5 35. Re7 {Qf5+ is the strong threat.} Qd8 36. Nf5 {White is more active.} ({Of course not} 36. Rxe5 f6 37. Qf5+ Kg8 $11) ({White should try} 36. Qf5+ $14 Kg8 37. Qxe5) 36... Rg8 $11 37. Rxe5 Qg5 (37... g6 {looks sharper.} 38. hxg6+ Nxg6 39. Qh5 Qg5) 38. Re7 g6 39. hxg6+ Rxg6 40. Rc7 Re6 41. g4 Qd8 42. Qf4 Qg5 43. e5 Qd8 $1 44. Re7 {White wants to mate with Rxe6.} Qd2+ 45. Kh3 {Rxe6 would kill now.} Qd5 46. Rxe6 $40 {[%mdl 128] Black needs to defend precisely.} Qh1+ 47. Kg3 {[%cal Re6h6]} Qg1+ 48. Kf3 Qf1+ 49. Ke4 Qb1+ 50. Kd4 Qb4+ 51. Kd3 Qb3+ 52. Ke2 Qc2+ 53. Ke1 Qc1+ $2 {[%mdl 8192]} (53... Qc3+ $11 54. Kf2 Qd2+ 55. Kg3 Qe1+ 56. Kg2 Qe2+ 57. Kh3 Qf3+ 58. Qxf3 fxe6) 54. Kf2 Qd2+ 55. Kf1 $2 (55. Kg3 {mates} Qe1+ 56. Kg2 Qe2+ 57. Kh3 Qf3+ 58. Qxf3 fxe6 59. Ne7 Kg7 60. Qf6+ Kh7 61. Qxe6 h5 62. Qg8+ Kh6 63. g5#) 55... Qd1+ 56. Kf2 Qd2+ 57. Kg1 {White mates.} Qd1+ 58. Kh2 Qe2+ 59. Kh3 {Weighted Error Value: White=0.31/Black=0.35} 1-0

[Event "European Amateur Chess-ch 2022"]
[Site "Zagreb"]
[Date "2022.08.14"]
[Round "1.12"]
[White "Korov, Zvonko"]
[Black "Starcevic, Ante Leon"]
[Result "0-1"]
[ECO "D79"]
[WhiteElo "2015"]
[BlackElo "2152"]
[Annotator "TA"]
[PlyCount "102"]
[EventDate "2022.08.14"]
[EventCountry "CRO"]
[SourceTitle "playchess.com"]
[Source "ChessBase"]
[SourceQuality "1"]
[TimeControl "40/5400+30:1800+30"]

{[%evp 13,102,11,23,-10,-15,-10,-15,-12,-15,-18,0,-34,-37,-40,-39,-45,-44,-45,-47,-59,0,-22,-19,-54,0,0,0,0,0,0,0,0,0,0,0,0,0,0,31,31,40,40,74,97,86,71,147,28,48,48,48,41,34,26,22,0,10,11,18,0,4,0,0,0,4,13,20,-8,-7,-63,-5,-8,0,-206,-208,-206,-202,-195,-202,-208,-111,-154,0,-1188,-1160,-29991,-29989,-29992,-29990,-29990,-932]} 1. Nf3 Nf6 2. c4 g6 3. g3 c6 4. Bg2 d5 5. O-O Bg7 6. cxd5 cxd5 7. d4 O-O 8. Bg5 {D79: Fianchetto Grünfeld: Symmetrical Variation (6 0-0 c6 7 cxd5 cxd5).} Ne4 9. Bf4 Nc6 10. Nc3 {The position is equal.} Nxc3 11. bxc3 e6 {[#]} 12. Qc1 $146 ({Predecessor:} 12. Qd2 Na5 13. Bh6 Nc4 14. Qc1 Bd7 15. Bxg7 Kxg7 16. Nd2 Rc8 17. e4 Nxd2 18. Qxd2 dxe4 19. Bxe4 {0-1 (57) Szucs,Z-Bujdoso,B (2008) Nyiregyhaza 2008}) 12... b6 13. Bh6 Ba6 14. Bxg7 Kxg7 15. Re1 Rc8 16. e4 {[%cal Be2e4,Be4e5][%mdl 32]} Ne7 (16... dxe4 $1 $15 17. Rxe4 Bc4) 17. Ne5 Bb7 18. Qd2 Qd6 (18... dxe4 $15 19. Bxe4 Bxe4 20. Rxe4 Qd5) 19. Ng4 $11 {Intending Qh6+ and mate.} Ng8 {Prevents Qh6+.} 20. e5 $36 {[%mdl 2048] White has some pressure.} Qa3 21. Rac1 {[%cal Oc3c4]} Rc7 22. h4 {[%cal Oh4h5]} Rfc8 23. Re3 $1 h5 24. Nh2 ({Much weaker is} 24. c4 Qe7 25. Nf6 Nxf6 26. exf6+ Qxf6 $17) 24... Nh6 {Inhibits g4.} 25. Bh3 ({Of course not} 25. c4 Qe7 26. Rec3 Rxc4 $17) 25... Qe7 26. Nf3 Rc4 27. Ng5 Ra4 28. Rf3 {And now Rf6 would win.} Nf5 29. Bxf5 exf5 {[#]} ({Better is} 29... gxf5 30. Nh3 Rh8) 30. Nh3 (30. e6 $1 $16 {[%cal Re6f7]} fxe6 31. Re1) 30... Rd8 31. Nf4 Bc8 32. Ng2 Be6 33. Rc2 Rc8 34. Ne3 b5 35. Rb2 a6 36. Nc2 Rac4 {[%cal Of5f4]} 37. Ne1 Qc7 {[%cal Rc4c3]} 38. Rb3 Bd7 39. Nc2 Be6 40. Rd3 f4 41. Nb4 ({White should play} 41. Qxf4 $11 Bf5 42. Rd2 Rxc3 43. Ne3) 41... fxg3 (41... a5 $15 42. Na6 Qb6) 42. Rxg3 a5 43. Na6 (43. Nd3 $11 {and White stays safe.}) 43... Qb6 44. Nc5 R8xc5 45. dxc5 Qxc5 46. Rb1 Rxh4 (46... Kh7 $19 {aiming for ...d4.} 47. Qe3 d4 48. cxd4 Rxd4) 47. Qg5 $17 {[#]} Qc4 (47... Re4 $1 $17 {Threatens to win with ...Kh7.} 48. Qxh5 d4 49. cxd4 Qxd4) 48. Rxb5 $2 {[%mdl 8192]} Qe4 $19 {[%csl Ge4][%cal Rh4h1]} 49. f3 Qe1+ {Black mates.} 50. Kg2 Qe2+ 51. Kg1 Rh2 {Weighted Error Value: White=0.50/Black=0.16 (very precise)} (51... Qd1+ $142 52. Kf2 Rh1 53. Qf6+ Kh7 54. Qxg6+ fxg6 55. Rb7+ Kh6 56. Rxg6+ Kxg6 57. Rg7+ Kxg7 58. Ke3 Rf1 59. Kf4 Qxf3+ 60. Kg5 Qg4#) 0-1

[Event "European Amateur Chess-ch 2022"]
[Site "Zagreb"]
[Date "2022.08.14"]
[Round "1.13"]
[White "Fajdetic, Hrvoje"]
[Black "Maravic, Ivan"]
[Result "1-0"]
[ECO "A45"]
[WhiteElo "2151"]
[BlackElo "2009"]
[Annotator "TA"]
[PlyCount "53"]
[EventDate "2022.08.14"]
[EventCountry "CRO"]
[SourceTitle "playchess.com"]
[Source "ChessBase"]
[SourceQuality "1"]
[TimeControl "40/5400+30:1800+30"]

{[%evp 9,53,0,35,28,25,18,19,10,13,36,74,73,72,79,137,122,205,214,208,204,215,213,206,196,299,290,324,313,404,399,382,361,347,326,586,502,679,674,1068,1081,1057,1047,1039,1015,1025,1006]} 1. d4 Nf6 2. Bf4 g6 3. Nc3 d5 4. e3 Bg7 5. h4 O-O 6. h5 {A45: Trompowsky Attack.} c5 7. hxg6 fxg6 8. Qd2 {The position is equal.} Nc6 9. dxc5 e5 10. Bg5 Be6 11. Nf3 {[#]} a6 $146 (11... Qa5 $142) ({Predecessor:} 11... Qa5 12. Bxf6 Bxf6 13. e4 Rad8 14. exd5 e4 15. Nxe4 Qxd2+ 16. Nfxd2 Bxd5 17. c3 Rfe8 18. f3 Kg7 19. Bc4 Ne5 20. Bxd5 Rxd5 21. Rxh7+ Kxh7 22. Nxf6+ Kh6 23. Nxe8 {1-0 (23) Deac,B (2579)-Skacel,J (2022) Pardubice 2017}) 12. O-O-O $16 Qa5 (12... e4 $16) 13. Bxf6 $18 Bxf6 14. Nxd5 Qxa2 {[%cal Ra2a1] [#]} 15. Nxf6+ Rxf6 {[%cal Ra2a1]} 16. Qc3 Qa1+ (16... Re8 $142 17. b4 a5) 17. Kd2 Qa4 18. Rh4 Qa5 19. Qxa5 {Active counter play!} Nxa5 20. Ke1 Raf8 21. Rd6 {[#] Hoping for b4.} g5 $2 (21... Bf5 22. Nxe5 Bxc2 23. Rxf6 Rxf6) 22. Nxg5 {White is clearly winning.} Rxf2 23. Bd3 ({Weaker is} 23. Rxe6 Rxf1+ 24. Kd2 R1f2+ 25. Kd3 Rxg2 $16) 23... e4 24. Nxe4 ({Not} 24. Rxe6 exd3 25. cxd3 Rf1+ 26. Kd2 R8f2+ 27. Kc3 Rc1+ 28. Kd4 (28. Kb4 Rxb2+ 29. Ka3 Rb3+ 30. Ka2 Rc2+ 31. Ka1 Rxd3 $11) 28... Nb3+ 29. Ke4 Nxc5+ 30. Ke5 Nxe6 31. Nxe6 Rxb2 $17) 24... Rxg2 25. Rxe6 Rg1+ 26. Kd2 Rg2+ 27. Kc3 {Black got outplayed after the opening.  Weighted Error Value: White=0.07 (flawless) /Black=0.62} 1-0

[Event "European Amateur Chess-ch 2022"]
[Site "Zagreb"]
[Date "2022.08.14"]
[Round "1.14"]
[White "Jakupec, Denis"]
[Black "Havas, Janko"]
[Result "1/2-1/2"]
[ECO "E64"]
[WhiteElo "2004"]
[BlackElo "2143"]
[Annotator "TA"]
[PlyCount "49"]
[EventDate "2022.08.14"]
[EventCountry "CRO"]
[SourceTitle "playchess.com"]
[Source "ChessBase"]
[SourceQuality "1"]
[TimeControl "40/5400+30:1800+30"]

{[%evp 23,49,27,24,20,11,0,28,37,40,22,39,18,66,54,60,17,68,69,73,61,63,67,68,70,59,51,79,81]} 1. d4 c5 2. d5 Nf6 3. Nf3 d6 4. c4 g6 5. Nc3 Bg7 6. g3 O-O 7. Bg2 Na6 8. O-O Nc7 9. a4 b6 10. e4 Nd7 11. Re1 Rb8 12. h3 a6 13. Bf1 {E64: King's Indian: Fianchetto: 6...c5 7 d5.} Ne5 14. Nd2 {[#]} f6 $146 ({Predecessor:} 14... f5 15. f4 Nf7 16. exf5 Bxf5 17. g4 Bd7 18. Qe2 e6 19. Nf3 exd5 20. cxd5 b5 21. axb5 axb5 {0-1 (71) Langer,W (2021)-Hirneise,T (2214) Dresden 2006}) 15. f4 {White has an edge.} Nf7 16. Kh2 Bd7 17. Ra2 Rb7 (17... f5 $11 {feels stronger.}) 18. Qc2 Qb8 19. Bd3 b5 (19... Qc8 $11) 20. axb5 (20. cxb5 {feels hotter.} axb5 21. axb5 Nxb5 22. Bxb5 Bxb5 23. Nxb5 Rxb5 24. Nc4) 20... axb5 21. cxb5 Nxb5 22. Nxb5 Bxb5 23. Bxb5 Rxb5 24. Nc4 Qc7 25. Bd2 {Weighted Error Value: White=0.10 (very precise) /Black=0.21 (precise)} 1/2-1/2

[Event "European Amateur Chess-ch 2022"]
[Site "Zagreb"]
[Date "2022.08.14"]
[Round "1.15"]
[White "Frouth, Nenad"]
[Black "Green, Michael"]
[Result "1-0"]
[ECO "B13"]
[WhiteElo "2121"]
[BlackElo "1997"]
[Annotator "TA"]
[PlyCount "77"]
[EventDate "2022.08.14"]
[EventCountry "CRO"]
[SourceTitle "playchess.com"]
[Source "ChessBase"]
[SourceQuality "1"]
[TimeControl "40/5400+30:1800+30"]

{[%evp 15,77,-21,0,-61,-69,-85,-18,-90,0,0,22,0,4,12,226,210,303,319,316,322,326,318,314,304,299,301,337,340,330,249,452,439,401,325,317,310,320,312,479,470,29958,2162,6303,2177,29986,29987,29987,29988,29988,29989,29989,656,29990,29991,29991,29992,29992,29990,29990,29989,29989,29989,29988,29988]} 1. e4 c6 2. d4 d5 3. exd5 cxd5 4. c4 Nf6 5. Nc3 Nc6 6. Nf3 Bg4 7. cxd5 Nxd5 8. Bc4 e6 9. Be3 {B13: Caro-Kann: Exchange Variation and Panov-Botvinnik Attack.} (9. O-O $11) 9... Bb4 $15 10. Rc1 {[#]} Qf6 $146 (10... Nxe3 11. fxe3 O-O 12. O-O $11) (10... O-O $17) ({Predecessor:} 10... O-O 11. O-O Nce7 12. h3 Bh5 13. g4 Bg6 14. Ne5 Rc8 15. Qb3 Bxc3 16. bxc3 Nxe3 17. fxe3 {0-1 (64) Jarvenpaa,J (2274)-Luukkonen,T (2343) Tampere 2017}) 11. Be2 (11. O-O $11 {remains equal.} Bxc3 12. bxc3) 11... Bf5 (11... O-O $17) 12. O-O $11 Nxc3 13. bxc3 Ba3 14. Ra1 $1 Bb2 $2 {[#] This costs Black the game.} (14... O-O $11) 15. Rb1 $1 $18 (15. Bg5 Qg6 16. Be3 Bxa1 $17) 15... Bxb1 (15... Bxc3 {was worth a try.} 16. Rc1 (16. Bg5 Qg6 $11) 16... Bb2) 16. Qxb1 Bxc3 17. Qxb7 O-O {[%cal Rc6d4]} 18. Qxc6 Rac8 19. Qe4 Qg6 20. Qh4 {Hoping for Ne5.} Qc2 21. Ba6 Rb8 22. h3 {Ne5 is the strong threat.} Qxa2 $2 (22... Rb1 23. Rxb1 Qxb1+ 24. Kh2 Ba5) 23. Bd3 {[%csl Gd3][%cal Rh4h7] A strong pair of Bishops.} f5 24. g4 Qd5 25. Qg3 ({Stronger than} 25. Ng5 h6 26. Nxe6 Qxe6 $11) 25... f4 26. Bxf4 {Threatens to win with Ng5.} Rb2 (26... Rbd8 $142 27. Bc2 h6) 27. Ng5 Bxd4 (27... h6 $18 28. Bh7+ Kh8) 28. Bxh7+ Kh8 {[#]} 29. Be4 (29. Qh4 $142 $1 Rxf4 30. Bf5+ Kg8 31. Bxe6+ Qxe6 32. Qh7+ Kf8 33. Nxe6+ Kf7 34. Nxf4 Rxf2 35. Rxf2) 29... Bxf2+ 30. Rxf2 Qd1+ 31. Kh2 Rxf2+ 32. Qxf2 Kg8 33. Bh7+ Kh8 34. Bc2 {White mates.} Rxf4 35. Qh4+ ({Not} 35. Bxd1 Rxf2+ 36. Kg1 Rb2 $11) 35... Kg8 36. Qh7+ Kf8 37. Qh8+ Ke7 38. Qxg7+ Kd6 39. Bxd1 {Weighted Error Value: White=0.16 (very precise) /Black=0.82} 1-0

[Event "European Amateur Chess-ch 2022"]
[Site "Zagreb"]
[Date "2022.08.14"]
[Round "1.16"]
[White "Ruzic, Pia Marie"]
[Black "Peric, Bernard"]
[Result "1-0"]
[ECO "E11"]
[WhiteElo "1996"]
[BlackElo "2112"]
[Annotator "TA"]
[PlyCount "81"]
[EventDate "2022.08.14"]
[EventCountry "CRO"]
[SourceTitle "playchess.com"]
[Source "ChessBase"]
[SourceQuality "1"]
[TimeControl "40/5400+30:1800+30"]

{[%evp 9,81,-3,25,25,11,13,51,59,62,60,58,50,63,33,37,17,59,49,62,55,53,50,75,59,83,58,104,101,97,104,102,81,83,82,80,50,64,33,80,82,84,-52,114,132,155,45,84,88,108,106,69,22,25,29,116,115,127,14,204,196,334,335,416,381,435,313,442,434,416,414,700,573,577,565]} 1. Nf3 Nf6 2. c4 e6 3. d4 d5 4. g3 Bb4+ 5. Bd2 Qe7 6. Qb3 {E11: Bogo-Indian.} Bxd2+ 7. Nbxd2 {[#]} Nc6 $146 ({Predecessor:} 7... O-O 8. Bg2 c6 9. O-O Nbd7 10. Rfc1 Ne4 11. Qe3 Nxd2 12. Nxd2 Re8 13. f4 Nf6 {½-½ (55) Vasquez Schroder,R (2520)-Rubinetti,J (2430) Mar del Plata 1996}) 8. Bg2 {White is slightly better.} O-O 9. O-O b6 10. Rac1 Bb7 11. cxd5 exd5 12. Rfe1 Rad8 13. Qa4 Qd6 14. a3 a6 15. Rc2 Rfe8 16. e3 Re7 17. b4 Rde8 (17... Nd7 $14 {feels stronger.}) 18. Rec1 $16 {[%cal Rc2c6]} Nd8 19. Ne5 Ne4 20. Ndf3 {[%cal Oc2c7] White is more active.} f6 21. Nd3 {[%cal Oc2c7]} Ne6 22. h4 a5 23. Qb3 {Threatens to win with bxa5.} Ra8 (23... axb4 $14 {was preferrable.} 24. axb4 c6) 24. b5 {[%cal Oc2c6]} Rae8 25. Bh3 {[#]} (25. Qa2 $16) 25... Nd8 $2 (25... Nxg3 $1 $15 {keeps the upper hand.} 26. Nde5 (26. fxg3 Qxg3+ 27. Bg2 Nd8 $15) 26... Ne4) 26. Kg2 Nf7 {[#]} 27. Ra2 (27. Rc6 $1 $16 {[%mdl 512]} a4 (27... Qd8 28. Nf4) 28. Qxa4 Bxc6 29. Rxc6) 27... Nh6 28. Qd1 Bc8 29. Bxc8 Rxc8 30. Rc6 (30. Nf4 $14) 30... Qd7 $11 31. Qb3 Qf5 (31... a4 $11 {remains equal.} 32. Qb4 Ng4) 32. Nf4 $16 Rd8 {[#]} 33. h5 ({Better is} 33. Nh2 $1 $16) 33... Nf7 $2 {This move loses the game for Black.} (33... Ng4 $11) 34. Nh4 $18 Qd7 (34... Qg5 $142 35. Ne6 Qxh5) 35. Rac2 Neg5 36. Rc1 Ne4 37. Qc2 Rc8 (37... a4 $142 38. f3 (38. Rxc7 Qxc7 39. Qxc7 Rxc7 $18) 38... Ned6) 38. a4 Nd8 39. Rxb6 Nd6 (39... Ne6 $142 40. Nxe6 Rxe6) 40. Ra6 Nc4 41. Qf5 {Weighted Error Value: White=0.34/Black=0.51} 1-0

[Event "European Amateur Chess-ch 2022"]
[Site "Zagreb"]
[Date "2022.08.14"]
[Round "1.17"]
[White "Gal, Moshe"]
[Black "Prihoda, Leonardo"]
[Result "1/2-1/2"]
[ECO "D35"]
[WhiteElo "2111"]
[BlackElo "1995"]
[Annotator "TA"]
[PlyCount "136"]
[EventDate "2022.08.14"]
[EventCountry "CRO"]
[SourceTitle "playchess.com"]
[Source "ChessBase"]
[SourceQuality "1"]
[TimeControl "40/5400+30:1800+30"]

{[%evp 18,136,35,29,27,16,33,33,49,43,41,40,36,32,69,73,72,68,72,73,78,77,76,75,95,61,64,66,67,66,75,60,63,1,63,0,58,46,45,0,0,-44,0,-109,-38,-133,-133,-185,-192,-176,-156,-339,-323,-316,-279,-177,-177,-175,-151,-154,-147,-137,-27,-45,-24,-24,-24,-24,-24,-141,-142,-772,-742,-757,-748,-685,-637,-612,-548,-441,-141,-158,0,-420,-112,-180,0,0,0,0,0,0,0,0,0,0,0,0,0,0,0,0,0,0,0,0,0,0,0,0,0,0,0,0,0,0,0,0,0,0,0]} 1. d4 d5 2. c4 e6 3. Nc3 Nf6 4. cxd5 exd5 5. Bg5 c6 6. e3 Bf5 7. Qf3 Bg6 8. Bxf6 Qxf6 9. Qxf6 gxf6 10. Nf3 Nd7 {D35: Queen's Gambit Declined: Exchange Variation.} 11. Nh4 Be7 12. Ne2 O-O-O {White is slightly better.} 13. Ng3 Bb4+ 14. Kd1 {[#]} Rhe8 $146 ({Predecessor:} 14... Ba5 15. Ngf5 Kb8 16. Nh6 Rhf8 17. N4f5 c5 18. h4 a6 19. h5 Bxf5 20. Nxf5 cxd4 21. exd4 {½-½ (46) Quirk,M (1986)-Jarmuz,F (2009) ICCF email 2017}) 15. Nhf5 Bf8 16. h4 {[%cal Bh2h4,Bh4h5][%mdl 32]} h6 17. h5 {aiming for Nxh6.} Bh7 18. a3 a6 19. Bd3 Kb8 20. Kd2 c5 21. Rac1 {0x0.002363fbb8b8dp-1022s more active pieces. The black rooks are badly placed.} c4 22. Bc2 b5 {[%cal Bb7b5,Bb5b4,Bb4b3][%mdl 32]} 23. Nh4 Bxc2 24. Kxc2 a5 25. Ngf5 (25. Ra1 $14) 25... Kb7 {[#]} (25... b4 $11) 26. Ra1 (26. Ng6 $1 $14) 26... Ra8 (26... b4 $11) 27. Rhc1 b4 28. Nf3 Nb6 29. a4 b3+ 30. Kb1 (30. Kd1 $1 $11) 30... Rac8 ({Better is} 30... Bb4 $1 $17) 31. Rc3 ({White should try} 31. Ng1 $15) 31... Bb4 $17 32. Nh2 (32. Rc1 Rg8 33. g3 Rc7 $17) (32. N3h4 $17 {was called for.}) 32... Rg8 $19 33. g4 Rh8 (33... Bxc3 34. bxc3 Rh8 35. f3 $17) 34. Nf1 $2 (34. Rc1 $17) 34... Rcg8 35. f3 Rg5 ({Stronger than} 35... Bxc3 36. bxc3 Rf8 37. Nd2 $17) 36. N1g3 ({Don't play} 36. Rc1 Rxf5 37. gxf5 Re8 $19) 36... Bxc3 37. bxc3 Kc7 {Inhibits Nd6.} 38. Kb2 Kd7 39. Ka3 {[#]} Rgg8 (39... Nc8 $1 $17 {Hoping for ...Nd6.} 40. e4 Nb6) 40. e4 $11 dxe4 41. Nxe4 {Pair of Knights!} Nd5 42. Kb2 Re8 43. Nfd6 {[#]} (43. Rb1 $11) 43... Rxe4 $1 $17 44. fxe4 {[%mdl 8192]} (44. Nxe4 $17 f5 45. Nd2 (45. gxf5 $2 Rg8 $19)) 44... Kxd6 $19 45. exd5 $17 {[%mdl 4096] Endgame KR-KR} Re8 {( -> ...Re2+)} 46. Rf1 Re2+ 47. Kb1 Kxd5 {White must now prevent ...Rc2.} 48. Rxf6 Re1+ $2 (48... Rc2 $19 {is more deadly.} 49. Rf3 Ke4) 49. Kb2 Re2+ $2 (49... Ke4 $17 {Strongly threatening ...Re2+.} 50. d5 Re2+ 51. Kb1 Kxd5 52. Rxh6 Re3) 50. Kb1 $19 Rg2 $2 (50... Rc2 $19 51. Rf3 Ke4) 51. Rxh6 (51. Rxf7 $17 {was worth a try.} Rc2 52. g5 hxg5 53. Rf3) 51... Rxg4 $2 (51... Rc2 $19 52. Rb6 Ke4) 52. Rf6 $11 {The position is equal.} Rg1+ 53. Kb2 Rg2+ 54. Kb1 Rh2 55. Rxf7 Rh1+ 56. Kb2 Rh2+ 57. Kb1 Rxh5 58. Re7 Rh1+ 59. Kb2 Rh2+ 60. Kb1 Kd6 61. Re5 $1 Rc2 62. Rxa5 Rxc3 {Threatens to win with ...Rd3.} 63. Rc5 Rc2 64. a5 c3 65. a6 Rb2+ 66. Kc1 Rc2+ 67. Kb1 Rb2+ 68. Kc1 Rc2+ {Whites escaped into a draw.  Weighted Error Value: White=0.34/Black=0.36} 1/2-1/2

[Event "European Amateur Chess-ch 2022"]
[Site "Zagreb"]
[Date "2022.08.14"]
[Round "1.18"]
[White "Tomic, Stjepan"]
[Black "Karlusic, Luka"]
[Result "0-1"]
[ECO "B44"]
[WhiteElo "1990"]
[BlackElo "2089"]
[Annotator "NA RC"]
[PlyCount "46"]
[EventDate "2022.08.14"]
[EventCountry "CRO"]
[SourceTitle "playchess.com"]
[Source "ChessBase"]
[SourceQuality "1"]
[TimeControl "40/5400+30:1800+30"]

1. e4 c5 2. Nf3 e6 3. c4 Nc6 4. d4 cxd4 5. Nxd4 Nf6 6. Nc3 Bb4 7. Nxc6 dxc6 8. Qxd8+ Kxd8 9. Bd3 e5 10. Bd2 Be6 11. O-O Ke7 12. Rad1 Rhd8 13. Be2 Rd4 14. a3 Rad8 15. axb4 Rxd2 16. Nd5+ Nxd5 17. Rxd2 Nf4 18. Rxd8 Nxe2+ 19. Kh1 Kxd8 20. Ra1 a6 21. c5 Ke7 22. g3 Nd4 23. Rc1 Bg4 0-1